[Event "Titled Tuesday Blitz March 08 Late 2022"]
[White "Jacobson, Aaron"]
[Black "Bibasa, Bob"]
[WhiteFideId "2089912"]
[BlackFideId "10000240"]
[WhiteElo "2543"]
[BlackElo "2382"]
[Result "0-1"]
[Round "04"]
[TimeControl "180+1"]
[Date "2022.03.09"]
[WhiteClock "0:02:42"]
[BlackClock "0:00:45"]

1. e4 {[%clk 0:03:00]}  c5 {[%clk 0:03:00]} 2. Nf3 {[%clk 0:03:01]}  d6 {[%clk 0:03:00]} 3. d4 {[%clk 0:03:01]}  cxd4 {[%clk 0:03:01]} 4. Nxd4 {[%clk 0:03:02]}  Nf6 {[%clk 0:03:02]} 5. Nc3 {[%clk 0:03:03]}  a6 {[%clk 0:03:02]} 6. Bg5 {[%clk 0:03:03]}  Nbd7 {[%clk 0:03:02]} 7. Qe2 {[%clk 0:03:04]}  e6 {[%clk 0:03:01]} 8. f4 {[%clk 0:03:04]}  Be7 {[%clk 0:03:01]} 9. O-O-O {[%clk 0:03:04]}  Qc7 {[%clk 0:03:01]} 10. g4 {[%clk 0:03:05]}  b5 {[%clk 0:03:00]} 11. a3 {[%clk 0:03:06]}  Bb7 {[%clk 0:03:00]} 12. Bxf6 {[%clk 0:03:06]}  Nxf6 {[%clk 0:03:00]} 13. g5 {[%clk 0:03:07]}  Nd7 {[%clk 0:02:58]} 14. h4 {[%clk 0:03:07]}  e5 {[%clk 0:02:53]} 15. Nf5 {[%clk 0:03:06]}  Bf8 {[%clk 0:02:48]} 16. fxe5 {[%clk 0:03:02]}  Nxe5 {[%clk 0:02:48]} 17. h5 {[%clk 0:03:01]}  g6 {[%clk 0:02:23]} 18. hxg6 {[%clk 0:03:02]}  fxg6 {[%clk 0:02:24]} 19. Ne3 {[%clk 0:03:03]}  Bg7 {[%clk 0:02:22]} 20. Ned5 {[%clk 0:03:02]}  Qf7 {[%clk 0:02:11]} 21. Bh3 {[%clk 0:03:02]}  O-O {[%clk 0:02:06]} 22. Rdf1 {[%clk 0:02:58]}  Nf3 {[%clk 0:01:49]} 23. Bg4 {[%clk 0:02:53]}  Nd4 {[%clk 0:01:40]} 24. Qd3 {[%clk 0:02:53]}  Bxd5 {[%clk 0:01:18]} 25. Nxd5 {[%clk 0:02:52]}  Qa7 {[%clk 0:01:12]} 26. Nf6+ {[%clk 0:02:52]}  Bxf6 {[%clk 0:01:12]} 27. gxf6 {[%clk 0:02:53]}  Rf7 {[%clk 0:01:02]} 28. c3 {[%clk 0:02:52]}  Nb3+ {[%clk 0:01:03]} 29. Kc2 {[%clk 0:02:53]}  Nc5 {[%clk 0:01:03]} 30. Qd5 {[%clk 0:02:53]}  Re8 {[%clk 0:00:57]} 31. Bf5 {[%clk 0:02:47]}  Qb7 {[%clk 0:00:49]} 32. Qa2 {[%clk 0:02:42]}  gxf5 {[%clk 0:00:45]} 0-1


[Site "https://www.chess.com"]

[Event "Titled Tuesday Blitz March 08 Late 2022"]
[White "Jacobson, Brandon"]
[Black "Arabidze, Meri"]
[WhiteFideId "30901561"]
[BlackFideId "13604040"]
[WhiteElo "2362"]
[BlackElo "2335"]
[Result "1-0"]
[Round "04"]
[TimeControl "180+1"]
[Date "2022.03.08"]
[WhiteClock "0:00:36"]
[BlackClock "0:00:09"]

1. Nf3 {[%clk 0:02:52]}  d5 {[%clk 0:02:59]} 2. e3 {[%clk 0:02:51]}  c5 {[%clk 0:02:59]} 3. b3 {[%clk 0:02:49]}  Nc6 {[%clk 0:03:00]} 4. Bb2 {[%clk 0:02:49]}  Nf6 {[%clk 0:03:00]} 5. Bb5 {[%clk 0:02:49]}  Bd7 {[%clk 0:03:00]} 6. O-O {[%clk 0:02:49]}  e6 {[%clk 0:02:59]} 7. d4 {[%clk 0:02:50]}  cxd4 {[%clk 0:02:58]} 8. exd4 {[%clk 0:02:51]}  Be7 {[%clk 0:02:56]} 9. Nbd2 {[%clk 0:02:50]}  Rc8 {[%clk 0:02:56]} 10. a3 {[%clk 0:02:50]}  Ne4 {[%clk 0:02:51]} 11. Bd3 {[%clk 0:02:40]}  f5 {[%clk 0:02:50]} 12. c4 {[%clk 0:02:38]}  O-O {[%clk 0:02:49]} 13. b4 {[%clk 0:02:38]}  Bf6 {[%clk 0:02:38]} 14. c5 {[%clk 0:02:30]}  a6 {[%clk 0:02:34]} 15. Ne5 {[%clk 0:02:20]}  Bxe5 {[%clk 0:02:14]} 16. dxe5 {[%clk 0:02:21]}  Qg5 {[%clk 0:02:04]} 17. Nb3 {[%clk 0:01:59]}  Qf4 {[%clk 0:01:43]} 18. Qc1 {[%clk 0:01:33]}  Qxc1 {[%clk 0:01:22]} 19. Rfxc1 {[%clk 0:01:34]}  Ng5 {[%clk 0:00:36]} 20. Bc3 {[%clk 0:01:28]}  Nf7 {[%clk 0:00:35]} 21. f4 {[%clk 0:01:28]}  g5 {[%clk 0:00:35]} 22. g3 {[%clk 0:01:28]}  h6 {[%clk 0:00:35]} 23. Kf2 {[%clk 0:01:27]}  Kh7 {[%clk 0:00:35]} 24. a4 {[%clk 0:01:25]}  gxf4 {[%clk 0:00:31]} 25. gxf4 {[%clk 0:01:26]}  Na7 {[%clk 0:00:28]} 26. Nd4 {[%clk 0:01:24]}  a5 {[%clk 0:00:22]} 27. b5 {[%clk 0:01:18]}  Rxc5 {[%clk 0:00:22]} 28. Bxa5 {[%clk 0:01:18]}  Rxc1 {[%clk 0:00:21]} 29. Rxc1 {[%clk 0:01:19]}  Rc8 {[%clk 0:00:20]} 30. Rxc8 {[%clk 0:01:15]}  Nxc8 {[%clk 0:00:21]} 31. Bc7 {[%clk 0:01:11]}  Kg7 {[%clk 0:00:20]} 32. a5 {[%clk 0:01:11]}  Na7 {[%clk 0:00:14]} 33. Bb8 {[%clk 0:01:01]}  Nc8 {[%clk 0:00:13]} 34. Bc7 {[%clk 0:00:56]}  h5 {[%clk 0:00:11]} 35. a6 {[%clk 0:00:54]}  bxa6 {[%clk 0:00:12]} 36. bxa6 {[%clk 0:00:54]}  Nh6 {[%clk 0:00:11]} 37. h3 {[%clk 0:00:53]}  Ng8 {[%clk 0:00:12]} 38. Nb5 {[%clk 0:00:53]}  Nge7 {[%clk 0:00:11]} 39. Nd6 {[%clk 0:00:44]}  Na7 {[%clk 0:00:11]} 40. Bb6 {[%clk 0:00:43]}  Nec6 {[%clk 0:00:10]} 41. Nb5 {[%clk 0:00:41]}  Nc8 {[%clk 0:00:09]} 42. Bc5 {[%clk 0:00:36]} 1-0


[Site "https://www.chess.com"]

[Event "Titled Tuesday Blitz March 08 Late 2022"]
[White "Janaszak, Dawid"]
[Black "Curtis, John"]
[WhiteFideId "1119206"]
[BlackFideId "3200256"]
[WhiteElo "2199"]
[BlackElo "2203"]
[Result "1-0"]
[Round "04"]
[TimeControl "180+1"]
[Date "2022.03.09"]
[WhiteClock "0:01:28"]
[BlackClock "0:00:03"]

1. e4 {[%clk 0:02:53]}  e5 {[%clk 0:02:59]} 2. f4 {[%clk 0:02:50]}  d5 {[%clk 0:02:57]} 3. exd5 {[%clk 0:02:50]}  e4 {[%clk 0:02:57]} 4. Nc3 {[%clk 0:02:49]}  Nf6 {[%clk 0:02:57]} 5. Bc4 {[%clk 0:02:45]}  Bc5 {[%clk 0:02:43]} 6. Nge2 {[%clk 0:02:45]}  O-O {[%clk 0:02:26]} 7. d4 {[%clk 0:02:45]}  Bb4 {[%clk 0:02:16]} 8. O-O {[%clk 0:02:43]}  Nbd7 {[%clk 0:02:13]} 9. Bb3 {[%clk 0:02:40]}  Nb6 {[%clk 0:02:11]} 10. a3 {[%clk 0:02:37]}  Bxc3 {[%clk 0:02:04]} 11. Nxc3 {[%clk 0:02:38]}  Re8 {[%clk 0:02:00]} 12. Re1 {[%clk 0:02:30]}  Bf5 {[%clk 0:01:39]} 13. h3 {[%clk 0:02:26]}  h5 {[%clk 0:01:38]} 14. Qe2 {[%clk 0:02:18]}  Nbxd5 {[%clk 0:01:28]} 15. Nxd5 {[%clk 0:02:17]}  Nxd5 {[%clk 0:01:27]} 16. c3 {[%clk 0:02:18]}  e3 {[%clk 0:01:20]} 17. Qxh5 {[%clk 0:01:55]}  Be4 {[%clk 0:00:49]} 18. Bxe3 {[%clk 0:01:50]}  b5 {[%clk 0:00:36]} 19. Bd2 {[%clk 0:01:44]}  c6 {[%clk 0:00:35]} 20. Re2 {[%clk 0:01:32]}  Qd7 {[%clk 0:00:17]} 21. Rae1 {[%clk 0:01:29]}  Bd3 {[%clk 0:00:13]} 22. Re5 {[%clk 0:01:27]}  Rxe5 {[%clk 0:00:03]} 23. Qxe5 {[%clk 0:01:28]} 1-0


[Site "https://www.chess.com"]

[Event "Titled Tuesday Blitz March 08 Late 2022"]
[White "Kamsky, Gata"]
[Black "Sztokbant, Bernardo Vainzoff"]
[WhiteFideId "2000024"]
[BlackFideId "2115956"]
[WhiteElo "2645"]
[BlackElo "2237"]
[Result "1-0"]
[Round "04"]
[TimeControl "180+1"]
[Date "2022.03.08"]
[WhiteClock "0:00:33"]
[BlackClock "0:00:03"]

1. d4 {[%clk 0:02:42]}  Nf6 {[%clk 0:02:59]} 2. Nf3 {[%clk 0:02:42]}  g6 {[%clk 0:02:58]} 3. Bg5 {[%clk 0:02:41]}  Bg7 {[%clk 0:02:58]} 4. c3 {[%clk 0:02:42]}  Ne4 {[%clk 0:02:57]} 5. Bh4 {[%clk 0:02:40]}  d5 {[%clk 0:02:54]} 6. Nbd2 {[%clk 0:02:39]}  Bf5 {[%clk 0:02:53]} 7. e3 {[%clk 0:02:38]}  O-O {[%clk 0:02:52]} 8. Nxe4 {[%clk 0:02:38]}  Bxe4 {[%clk 0:02:50]} 9. Bd3 {[%clk 0:02:36]}  Bxd3 {[%clk 0:02:43]} 10. Qxd3 {[%clk 0:02:36]}  Nd7 {[%clk 0:02:42]} 11. O-O {[%clk 0:02:35]}  Nf6 {[%clk 0:02:37]} 12. c4 {[%clk 0:02:29]}  c6 {[%clk 0:02:27]} 13. Rac1 {[%clk 0:02:25]}  Qb6 {[%clk 0:02:19]} 14. c5 {[%clk 0:02:21]}  Qc7 {[%clk 0:01:42]} 15. Bg3 {[%clk 0:02:15]}  Qc8 {[%clk 0:01:35]} 16. h3 {[%clk 0:02:11]}  Ne4 {[%clk 0:01:35]} 17. Bh2 {[%clk 0:02:11]}  f6 {[%clk 0:01:29]} 18. b4 {[%clk 0:02:09]}  Qd7 {[%clk 0:01:28]} 19. a4 {[%clk 0:02:08]}  a6 {[%clk 0:01:27]} 20. Rb1 {[%clk 0:02:05]}  Rfe8 {[%clk 0:01:21]} 21. Rfd1 {[%clk 0:02:02]}  Qf5 {[%clk 0:01:03]} 22. Qc2 {[%clk 0:01:29]}  e5 {[%clk 0:00:53]} 23. b5 {[%clk 0:01:24]}  axb5 {[%clk 0:00:54]} 24. axb5 {[%clk 0:01:23]}  Bh6 {[%clk 0:00:41]} 25. bxc6 {[%clk 0:01:16]}  bxc6 {[%clk 0:00:42]} 26. Rb6 {[%clk 0:01:01]}  Rac8 {[%clk 0:00:40]} 27. Rf1 {[%clk 0:00:58]}  Re7 {[%clk 0:00:31]} 28. Qb3 {[%clk 0:00:54]}  Kh8 {[%clk 0:00:18]} 29. Rb8 {[%clk 0:00:50]}  Ree8 {[%clk 0:00:18]} 30. Rxc8 {[%clk 0:00:49]}  Qxc8 {[%clk 0:00:18]} 31. dxe5 {[%clk 0:00:49]}  Nxc5 {[%clk 0:00:19]} 32. Qc2 {[%clk 0:00:47]}  Ne4 {[%clk 0:00:17]} 33. exf6 {[%clk 0:00:47]}  Nxf6 {[%clk 0:00:17]} 34. Be5 {[%clk 0:00:45]}  Bg7 {[%clk 0:00:17]} 35. Rc1 {[%clk 0:00:44]}  Re6 {[%clk 0:00:10]} 36. Ng5 {[%clk 0:00:43]}  Re7 {[%clk 0:00:04]} 37. Qxc6 {[%clk 0:00:42]}  Qxc6 {[%clk 0:00:04]} 38. Rxc6 {[%clk 0:00:42]}  h6 {[%clk 0:00:03]} 39. Bxf6 {[%clk 0:00:40]}  Bxf6 {[%clk 0:00:02]} 40. Rxf6 {[%clk 0:00:40]}  hxg5 {[%clk 0:00:03]} 41. Rxg6 {[%clk 0:00:40]}  Re5 {[%clk 0:00:02]} 42. Kh2 {[%clk 0:00:38]}  Kh7 {[%clk 0:00:03]} 43. Rd6 {[%clk 0:00:38]}  Kg7 {[%clk 0:00:03]} 44. Kg3 {[%clk 0:00:39]}  Kf7 {[%clk 0:00:04]} 45. Kg4 {[%clk 0:00:38]}  Kg7 {[%clk 0:00:01]} 46. Kh5 {[%clk 0:00:37]}  Kf7 {[%clk 0:00:01]} 47. Rg6 {[%clk 0:00:33]}  g4+ {[%clk 0:00:01]} 48. Rg5 {[%clk 0:00:33]}  Rxg5+ {[%clk 0:00:01]} 49. Kxg5 {[%clk 0:00:33]}  g3 {[%clk 0:00:01]} 50. fxg3 {[%clk 0:00:33]}  Kg7 {[%clk 0:00:02]} 51. Kf5 {[%clk 0:00:33]}  d4 {[%clk 0:00:03]} 52. exd4 {[%clk 0:00:33]} 1-0


[Site "https://www.chess.com"]

[Event "Titled Tuesday Blitz March 08 Late 2022"]
[White "Kopczynski, Michal"]
[Black "Atanejhad, Sahebali"]
[WhiteFideId "1124200"]
[BlackFideId "12506664"]
[WhiteElo "2517"]
[BlackElo "2328"]
[Result "1-0"]
[Round "04"]
[TimeControl "180+1"]
[Date "2022.03.09"]
[WhiteClock "0:01:39"]
[BlackClock "0:01:55"]

1. e4 {[%clk 0:02:56]}  c5 {[%clk 0:02:59]} 2. d4 {[%clk 0:02:56]}  cxd4 {[%clk 0:02:59]} 3. c3 {[%clk 0:02:57]}  d5 {[%clk 0:02:59]} 4. exd5 {[%clk 0:02:57]}  Qxd5 {[%clk 0:03:00]} 5. cxd4 {[%clk 0:02:57]}  Nc6 {[%clk 0:03:01]} 6. Nf3 {[%clk 0:02:58]}  e5 {[%clk 0:03:00]} 7. Nc3 {[%clk 0:02:57]}  Bb4 {[%clk 0:02:59]} 8. Be2 {[%clk 0:02:58]}  Nf6 {[%clk 0:02:53]} 9. O-O {[%clk 0:02:57]}  Bxc3 {[%clk 0:02:53]} 10. bxc3 {[%clk 0:02:58]}  exd4 {[%clk 0:02:53]} 11. cxd4 {[%clk 0:02:56]}  O-O {[%clk 0:02:52]} 12. Rb1 {[%clk 0:02:51]}  b6 {[%clk 0:02:49]} 13. Rb5 {[%clk 0:02:49]}  Qd6 {[%clk 0:02:44]} 14. h3 {[%clk 0:02:42]}  Ba6 {[%clk 0:02:42]} 15. Rf5 {[%clk 0:02:35]}  Bxe2 {[%clk 0:02:41]} 16. Qxe2 {[%clk 0:02:36]}  Rfe8 {[%clk 0:02:41]} 17. Qd3 {[%clk 0:02:31]}  Rad8 {[%clk 0:02:40]} 18. Bf4 {[%clk 0:02:29]}  Qd7 {[%clk 0:02:34]} 19. Rd1 {[%clk 0:02:27]}  Nd5 {[%clk 0:02:33]} 20. Be5 {[%clk 0:02:21]}  Ncb4 {[%clk 0:02:30]} 21. Qe4 {[%clk 0:02:05]}  Nc3 {[%clk 0:02:28]} 22. Qg4 {[%clk 0:02:05]}  f6 {[%clk 0:02:21]} 23. Bxf6 {[%clk 0:01:50]}  Nxd1 {[%clk 0:02:18]} 24. Bxg7 {[%clk 0:01:43]}  Qxg7 {[%clk 0:02:00]} 25. Rg5 {[%clk 0:01:43]}  Nd5 {[%clk 0:01:55]} 26. Rxg7+ {[%clk 0:01:39]} 1-0


[Site "https://www.chess.com"]

[Event "Titled Tuesday Blitz March 08 Late 2022"]
[White "Kovanova, Baira"]
[Black "Celestino, Rafael Teixeira"]
[WhiteFideId "4164083"]
[BlackFideId "2108925"]
[WhiteElo "2190"]
[BlackElo "2279"]
[Result "1-0"]
[Round "04"]
[TimeControl "180+1"]
[Date "2022.03.09"]
[WhiteClock "0:00:18"]
[BlackClock "0:00:02"]

1. e4 {[%clk 0:02:58]}  c5 {[%clk 0:02:59]} 2. Nf3 {[%clk 0:02:58]}  Nc6 {[%clk 0:02:59]} 3. Bb5 {[%clk 0:02:58]}  g6 {[%clk 0:02:58]} 4. Bxc6 {[%clk 0:02:57]}  dxc6 {[%clk 0:02:59]} 5. O-O {[%clk 0:02:57]}  Bg7 {[%clk 0:03:00]} 6. d3 {[%clk 0:02:54]}  Qc7 {[%clk 0:03:00]} 7. Re1 {[%clk 0:02:48]}  e5 {[%clk 0:03:00]} 8. Be3 {[%clk 0:02:48]}  b6 {[%clk 0:02:59]} 9. a4 {[%clk 0:02:47]}  Ne7 {[%clk 0:02:59]} 10. Nbd2 {[%clk 0:02:47]}  O-O {[%clk 0:02:59]} 11. Nc4 {[%clk 0:02:44]}  Be6 {[%clk 0:02:55]} 12. b3 {[%clk 0:02:42]}  Rad8 {[%clk 0:02:52]} 13. Qc1 {[%clk 0:02:41]}  Bxc4 {[%clk 0:02:45]} 14. bxc4 {[%clk 0:02:41]}  Rb8 {[%clk 0:02:34]} 15. a5 {[%clk 0:02:36]}  Rfd8 {[%clk 0:02:28]} 16. axb6 {[%clk 0:02:36]}  axb6 {[%clk 0:02:28]} 17. Ra3 {[%clk 0:02:11]}  Qd6 {[%clk 0:02:28]} 18. Ra6 {[%clk 0:01:54]}  Qe6 {[%clk 0:02:12]} 19. Qa3 {[%clk 0:01:49]}  f5 {[%clk 0:02:06]} 20. Bg5 {[%clk 0:01:38]}  Bf6 {[%clk 0:01:48]} 21. exf5 {[%clk 0:01:34]}  Qxf5 {[%clk 0:01:46]} 22. h3 {[%clk 0:01:25]}  Bxg5 {[%clk 0:01:34]} 23. Rxe5 {[%clk 0:01:25]}  Qf4 {[%clk 0:01:31]} 24. Rxg5 {[%clk 0:01:24]}  Nf5 {[%clk 0:01:31]} 25. Rg4 {[%clk 0:01:19]}  Qd6 {[%clk 0:01:26]} 26. Re4 {[%clk 0:01:18]}  Re8 {[%clk 0:01:21]} 27. Rxe8+ {[%clk 0:01:16]}  Rxe8 {[%clk 0:01:22]} 28. Ra8 {[%clk 0:01:16]}  Qe7 {[%clk 0:01:16]} 29. Qa6 {[%clk 0:01:11]}  Kg7 {[%clk 0:00:43]} 30. Rxe8 {[%clk 0:01:09]}  Qxe8 {[%clk 0:00:44]} 31. Qxb6 {[%clk 0:01:10]}  Qe2 {[%clk 0:00:39]} 32. Qxc6 {[%clk 0:01:04]}  Qd1+ {[%clk 0:00:39]} 33. Kh2 {[%clk 0:01:04]}  Qxc2 {[%clk 0:00:40]} 34. Qd7+ {[%clk 0:00:50]}  Kf6 {[%clk 0:00:39]} 35. Qd8+ {[%clk 0:00:48]}  Kg7 {[%clk 0:00:34]} 36. Qc7+ {[%clk 0:00:42]}  Kf6 {[%clk 0:00:34]} 37. Qxc5 {[%clk 0:00:42]}  Qxd3 {[%clk 0:00:33]} 38. Qe5+ {[%clk 0:00:42]}  Kf7 {[%clk 0:00:29]} 39. Ng5+ {[%clk 0:00:41]}  Kg8 {[%clk 0:00:19]} 40. Qc7 {[%clk 0:00:25]}  Nd6 {[%clk 0:00:09]} 41. Qxh7+ {[%clk 0:00:23]}  Kf8 {[%clk 0:00:10]} 42. c5 {[%clk 0:00:22]}  Qd5 {[%clk 0:00:06]} 43. cxd6 {[%clk 0:00:21]}  Qxd6+ {[%clk 0:00:06]} 44. g3 {[%clk 0:00:20]}  Qf6 {[%clk 0:00:02]} 45. Ne4 {[%clk 0:00:20]}  Qf3 {[%clk 0:00:02]} 46. Qxg6 {[%clk 0:00:19]}  Ke7 {[%clk 0:00:02]} 47. h4 {[%clk 0:00:18]}  Kf8 {[%clk 0:00:02]} 48. h5 {[%clk 0:00:18]}  Ke7 {[%clk 0:00:02]} 49. h6 {[%clk 0:00:18]} 1-0


[Site "https://www.chess.com"]

[Event "Titled Tuesday Blitz March 08 Late 2022"]
[White "Leiva, Gianmarco"]
[Black "Spitzl, Vinzent"]
[WhiteFideId "3804399"]
[BlackFideId "12901253"]
[WhiteElo "2695"]
[BlackElo "2452"]
[Result "1-0"]
[Round "04"]
[TimeControl "180+1"]
[Date "2022.03.09"]
[WhiteClock "0:00:44"]
[BlackClock "0:00:03"]

1. e4 {[%clk 0:03:00]}  d5 {[%clk 0:02:58]} 2. exd5 {[%clk 0:02:58]}  Qxd5 {[%clk 0:02:59]} 3. Nc3 {[%clk 0:02:59]}  Qd8 {[%clk 0:02:57]} 4. d4 {[%clk 0:02:59]}  Nf6 {[%clk 0:02:56]} 5. Nf3 {[%clk 0:02:59]}  g6 {[%clk 0:02:56]} 6. h3 {[%clk 0:02:47]}  Bg7 {[%clk 0:02:55]} 7. Bf4 {[%clk 0:02:41]}  O-O {[%clk 0:02:46]} 8. Qd2 {[%clk 0:02:41]}  b6 {[%clk 0:02:32]} 9. O-O-O {[%clk 0:02:39]}  Bb7 {[%clk 0:02:33]} 10. Bc4 {[%clk 0:02:17]}  Nc6 {[%clk 0:02:25]} 11. a3 {[%clk 0:02:14]}  e6 {[%clk 0:02:08]} 12. Kb1 {[%clk 0:02:04]}  Nd5 {[%clk 0:02:03]} 13. Nxd5 {[%clk 0:02:00]}  exd5 {[%clk 0:02:03]} 14. Bb5 {[%clk 0:01:59]}  a6 {[%clk 0:01:50]} 15. Bxc6 {[%clk 0:01:59]}  Bxc6 {[%clk 0:01:51]} 16. Rhe1 {[%clk 0:01:55]}  Re8 {[%clk 0:01:49]} 17. Qc3 {[%clk 0:01:46]}  Rxe1 {[%clk 0:01:27]} 18. Rxe1 {[%clk 0:01:46]}  Qd7 {[%clk 0:01:28]} 19. Ne5 {[%clk 0:01:37]}  Bxe5 {[%clk 0:01:27]} 20. dxe5 {[%clk 0:01:31]}  Qe6 {[%clk 0:01:11]} 21. Bg5 {[%clk 0:01:27]}  Re8 {[%clk 0:00:46]} 22. g4 {[%clk 0:01:28]}  Qd7 {[%clk 0:00:39]} 23. Bf6 {[%clk 0:01:23]}  h6 {[%clk 0:00:37]} 24. Qg3 {[%clk 0:00:49]}  Kh7 {[%clk 0:00:34]} 25. Qh4 {[%clk 0:00:48]}  Re6 {[%clk 0:00:02]} 26. Bg5 {[%clk 0:00:45]}  Qe8 {[%clk 0:00:02]} 27. Qxh6+ {[%clk 0:00:44]}  Kg8 {[%clk 0:00:02]} 28. Bf6 {[%clk 0:00:42]}  Rxf6 {[%clk 0:00:02]} 29. exf6 {[%clk 0:00:43]}  Qxe1+ {[%clk 0:00:03]} 30. Ka2 {[%clk 0:00:44]} 1-0


[Site "https://www.chess.com"]

[Event "Titled Tuesday Blitz March 08 Late 2022"]
[White "Li, Ben"]
[Black "Batsiashvili, Nino"]
[WhiteFideId "2089980"]
[BlackFideId "13602993"]
[WhiteElo "2731"]
[BlackElo "2456"]
[Result "1-0"]
[Round "04"]
[TimeControl "180+1"]
[Date "2022.03.09"]
[WhiteClock "0:01:05"]
[BlackClock "0:00:36"]

1. d4 {[%clk 0:03:00]}  d5 {[%clk 0:02:59]} 2. Nf3 {[%clk 0:02:58]}  Nf6 {[%clk 0:02:58]} 3. c4 {[%clk 0:02:59]}  e6 {[%clk 0:02:58]} 4. Nc3 {[%clk 0:02:59]}  c5 {[%clk 0:02:57]} 5. cxd5 {[%clk 0:02:59]}  exd5 {[%clk 0:02:58]} 6. Bg5 {[%clk 0:02:59]}  Be6 {[%clk 0:02:58]} 7. e4 {[%clk 0:02:59]}  dxe4 {[%clk 0:02:46]} 8. Bb5+ {[%clk 0:02:57]}  Nc6 {[%clk 0:02:45]} 9. d5 {[%clk 0:02:48]}  exf3 {[%clk 0:02:42]} 10. dxc6 {[%clk 0:02:48]}  Qxd1+ {[%clk 0:02:35]} 11. Rxd1 {[%clk 0:02:49]}  b6 {[%clk 0:01:50]} 12. Bxf6 {[%clk 0:02:08]}  gxf6 {[%clk 0:01:51]} 13. gxf3 {[%clk 0:02:08]}  Rc8 {[%clk 0:01:44]} 14. Ba6 {[%clk 0:02:02]}  Rxc6 {[%clk 0:01:18]} 15. Bb5 {[%clk 0:02:01]}  Bd7 {[%clk 0:01:18]} 16. Bxc6 {[%clk 0:02:00]}  Bxc6 {[%clk 0:01:19]} 17. Ke2 {[%clk 0:01:58]}  Bh6 {[%clk 0:01:08]} 18. Rd6 {[%clk 0:01:48]}  Bb7 {[%clk 0:01:04]} 19. Rxf6 {[%clk 0:01:46]}  Ba6+ {[%clk 0:01:00]} 20. Ke1 {[%clk 0:01:43]}  Bg7 {[%clk 0:00:58]} 21. Rd6 {[%clk 0:01:43]}  Ke7 {[%clk 0:00:54]} 22. Rd2 {[%clk 0:01:37]}  Re8 {[%clk 0:00:54]} 23. Kd1 {[%clk 0:01:34]}  Kf8 {[%clk 0:00:47]} 24. Re1 {[%clk 0:01:32]}  Bb7 {[%clk 0:00:37]} 25. Rxe8+ {[%clk 0:01:07]}  Kxe8 {[%clk 0:00:38]} 26. Ne4 {[%clk 0:01:05]}  Bd4 {[%clk 0:00:36]} 27. Nd6+ {[%clk 0:01:05]} 1-0


[Site "https://www.chess.com"]

[Event "Titled Tuesday Blitz March 08 Late 2022"]
[White "Manukyan, Sargis A."]
[Black "Todorovic, Bojan"]
[WhiteFideId "13303970"]
[BlackFideId "917087"]
[WhiteElo "2523"]
[BlackElo "2373"]
[Result "1-0"]
[Round "04"]
[TimeControl "180+1"]
[Date "2022.03.09"]
[WhiteClock "0:01:09"]
[BlackClock "0:00:09"]

1. d4 {[%clk 0:03:00]}  Nf6 {[%clk 0:02:58]} 2. c4 {[%clk 0:03:01]}  e6 {[%clk 0:02:54]} 3. Nc3 {[%clk 0:03:01]}  Bb4 {[%clk 0:02:53]} 4. a3 {[%clk 0:03:02]}  Bxc3+ {[%clk 0:02:52]} 5. bxc3 {[%clk 0:03:03]}  b6 {[%clk 0:02:51]} 6. e3 {[%clk 0:03:03]}  Nc6 {[%clk 0:02:46]} 7. Bd3 {[%clk 0:03:03]}  Ba6 {[%clk 0:02:44]} 8. e4 {[%clk 0:02:59]}  e5 {[%clk 0:02:38]} 9. Ne2 {[%clk 0:02:48]}  Qe7 {[%clk 0:02:32]} 10. Qc2 {[%clk 0:02:33]}  O-O {[%clk 0:02:16]} 11. O-O {[%clk 0:02:33]}  d6 {[%clk 0:02:13]} 12. f4 {[%clk 0:02:31]}  h6 {[%clk 0:02:09]} 13. fxe5 {[%clk 0:02:02]}  dxe5 {[%clk 0:02:08]} 14. Ng3 {[%clk 0:02:03]}  exd4 {[%clk 0:02:00]} 15. Nf5 {[%clk 0:01:59]}  Qe5 {[%clk 0:01:36]} 16. Bf4 {[%clk 0:01:58]}  Qc5 {[%clk 0:01:35]} 17. Bxh6 {[%clk 0:01:46]}  dxc3+ {[%clk 0:01:31]} 18. Kh1 {[%clk 0:01:38]}  Nd4 {[%clk 0:01:25]} 19. Qxc3 {[%clk 0:01:35]}  Nxf5 {[%clk 0:00:53]} 20. Rxf5 {[%clk 0:01:36]}  Qe7 {[%clk 0:00:26]} 21. Raf1 {[%clk 0:01:24]}  Rfe8 {[%clk 0:00:17]} 22. Bxg7 {[%clk 0:01:12]}  Kxg7 {[%clk 0:00:16]} 23. Rxf6 {[%clk 0:01:12]}  Qe5 {[%clk 0:00:14]} 24. Rxf7+ {[%clk 0:01:12]}  Kg8 {[%clk 0:00:13]} 25. Qe1 {[%clk 0:01:10]}  Re6 {[%clk 0:00:11]} 26. Qh4 {[%clk 0:01:09]}  Rg6 {[%clk 0:00:09]} 27. Qh7# {[%clk 0:01:09]} 1-0


[Site "https://www.chess.com"]

[Event "Titled Tuesday Blitz March 08 Late 2022"]
[White "Martins, Carlos"]
[Black "Rudzinska, Michalina"]
[WhiteFideId "2101688"]
[BlackFideId "1172883"]
[WhiteElo "2183"]
[BlackElo "1904"]
[Result "1-0"]
[Round "04"]
[TimeControl "180+1"]
[Date "2022.03.09"]
[WhiteClock "0:00:37"]
[BlackClock "0:00:44"]

1. e4 {[%clk 0:02:41]}  c5 {[%clk 0:02:58]} 2. Nf3 {[%clk 0:02:40]}  e6 {[%clk 0:02:56]} 3. d4 {[%clk 0:02:39]}  cxd4 {[%clk 0:02:57]} 4. Nxd4 {[%clk 0:02:40]}  a6 {[%clk 0:02:49]} 5. Bd3 {[%clk 0:02:39]}  Nf6 {[%clk 0:02:47]} 6. O-O {[%clk 0:02:38]}  Qc7 {[%clk 0:02:47]} 7. Qe2 {[%clk 0:02:38]}  d6 {[%clk 0:02:47]} 8. f4 {[%clk 0:02:37]}  Nbd7 {[%clk 0:02:46]} 9. Kh1 {[%clk 0:02:37]}  Be7 {[%clk 0:02:47]} 10. Nd2 {[%clk 0:02:37]}  O-O {[%clk 0:02:47]} 11. N2f3 {[%clk 0:02:37]}  b6 {[%clk 0:02:44]} 12. e5 {[%clk 0:02:34]}  Nd5 {[%clk 0:02:40]} 13. c3 {[%clk 0:02:26]}  Bb7 {[%clk 0:02:32]} 14. Bd2 {[%clk 0:02:25]}  g6 {[%clk 0:02:29]} 15. Rae1 {[%clk 0:02:23]}  Rfe8 {[%clk 0:02:26]} 16. Qf2 {[%clk 0:02:17]}  Rad8 {[%clk 0:02:16]} 17. Ng5 {[%clk 0:02:13]}  Bxg5 {[%clk 0:02:13]} 18. fxg5 {[%clk 0:02:11]}  Nxe5 {[%clk 0:02:13]} 19. Be4 {[%clk 0:01:53]}  Rf8 {[%clk 0:02:06]} 20. Qh4 {[%clk 0:01:51]}  Ne7 {[%clk 0:01:55]} 21. Bxb7 {[%clk 0:01:33]}  Qxb7 {[%clk 0:01:55]} 22. Re3 {[%clk 0:01:15]}  Nf5 {[%clk 0:01:48]} 23. Nxf5 {[%clk 0:01:14]}  exf5 {[%clk 0:01:49]} 24. Rh3 {[%clk 0:01:10]}  f6 {[%clk 0:01:49]} 25. gxf6 {[%clk 0:01:08]}  Rd7 {[%clk 0:01:48]} 26. Bh6 {[%clk 0:01:06]}  Re8 {[%clk 0:01:41]} 27. Bg7 {[%clk 0:01:02]}  Rxg7 {[%clk 0:01:41]} 28. fxg7 {[%clk 0:01:02]}  Qxg7 {[%clk 0:01:42]} 29. Rg3 {[%clk 0:00:56]}  Ng4 {[%clk 0:01:37]} 30. h3 {[%clk 0:00:51]}  Ne3 {[%clk 0:01:32]} 31. Re1 {[%clk 0:00:42]}  Nxg2 {[%clk 0:00:45]} 32. Rxe8+ {[%clk 0:00:37]}  Kf7 {[%clk 0:00:44]} 33. Qe7# {[%clk 0:00:37]} 1-0


[Site "https://www.chess.com"]